[Event "CZE-ch Open 2019"]
[Site "Ostrava"]
[Date "2019.04.28"]
[Round "2.25"]
[White "Jurek, Josef"]
[Black "Ockay, Tomas"]
[Result "1-0"]
[ECO "A05"]
[WhiteElo "2269"]
[BlackElo "2131"]
[Annotator "NA"]
[PlyCount "85"]
[EventDate "2019.04.27"]
[EventType "swiss"]
[EventCountry "CZE"]
[SourceTitle "playchess.com"]
[Source "ChessBase"]
[SourceQuality "1"]
[TimeControl "40/5400+30:1800+30"]

1. Nf3 {[%emt 0:00:00]} Nf6 {[%emt 0:00:00]} 2. c4 {[%emt 0:00:00]} b6 {[%emt 0:00:00]} 3. g3 {[%emt 0:00:22]} Bb7 {[%emt 0:00:01]} 4. Bg2 {[%emt 0:00:16]} e6 {[%emt 0:01:19]} 5. O-O {[%emt 0:00:18]} Be7 {[%emt 0:00:18]} 6. d4 {[%emt 0:00:23]} O-O {[%emt 0:00:20]} 7. Re1 {[%emt 0:00:34]} Qc8 {[%emt 0:02:46]} 8. Bf4 {[%emt 0:04:05] E17: Queen's Indian: 4 g3 Bb7 5 Bg2 Be7} (8. Nc3 Ne4 9. Bd2 f5 10. Rc1 d6 11. d5 e5 12. Bh3 Nxd2 13. Nxd2 g5 14. f3 g4 15. fxg4 fxg4 {½-½ (26) Ivanchuk,V (2717)-Andreikin,D (2719) Sitges 2018}) 8... d6 {[%emt 0:10:34]} 9. Nc3 {[%emt 0:02:33]} Ne4 {[%emt 0:01:49]} 10. Rc1 $146 {[%emt 0:02:20]} ({Predecessor:} 10. Nxe4 Bxe4 11. Bh3 Bf6 12. Ng5 Bxg5 13. Bxg5 Qa6 14. f3 Bb7 15. b3 Qa5 {½-½ (64) Makhnyov,D (2375)-Nguyen Dang Hong,P (2209) Khanty-Mansiysk 2016}) 10... Nd7 {[%emt 0:00:55]} 11. d5 {[%emt 0:09:52]} Nxc3 {[%emt 0:10:58]} 12. Rxc3 {[%emt 0:00:34]} Bf6 {[%emt 0:00:40]} 13. Rc2 {[%emt 0:02:08]} a5 {[%emt 0:07:28]} 14. b3 {[%emt 0:04:16]} Nc5 {[%emt 0:01:25]} 15. e4 {[%emt 0:01:33]} e5 {[%emt 0:01:29]} 16. Bc1 {[%emt 0:06:26]} Qg4 {[%emt 0:01:27]} 17. h3 Qg6 {[%emt 0:00:42]} 18. Qe2 {[%emt 0:14:10]} Bc8 {[%emt 0:01:45]} 19. Nh2 {[%emt 0:03:11]} Bd7 {[%emt 0:01:49]} 20. h4 {[%emt 0:07:03]} h5 {[%emt 0:04:33]} 21. Bf3 {[%emt 0:02:40]} Qh7 {[%emt 0:00:05]} 22. Rc3 {[%emt 0:09:32]} g6 {[%emt 0:03:17]} 23. Bd2 {[%emt 0:01:53]} Bg7 {[%emt 0:00:27]} 24. a3 {[%emt 0:02:02]} f5 {[%emt 0:01:55]} 25. exf5 {[%emt 0:09:20]} Bxf5 {[%emt 0:00:44]} 26. g4 {[%emt 0:06:51]} hxg4 {[%emt 0:14:01]} 27. Bxg4 {[%emt 0:01:14]} Qxh4 {[%emt 0:02:26]} 28. Rg3 {[%emt 0:04:17]} Ne4 {[%emt 0:19:12]} 29. Qxe4 {[%emt 0:00:08]} Bxe4 {[%emt 0:00:56]} 30. Rxe4 {[%emt 0:00:02]} Rf7 {[%emt 0:09:44]} 31. Nf3 {[%emt 0:02:02]} Qe7 {[%emt 0:01:28]} 32. Be6 {[%emt 0:00:20]} Kf8 {[%emt 0:00:13]} 33. Ng5 {[%emt 0:01:28]} Rf5 {[%emt 0:01:11]} 34. Nh7+ {[%emt 0:01:11]} Ke8 {[%emt 0:00:25]} 35. Rxg6 {[%emt 0:00:32]} Rh5 {[%emt 0:00:33]} 36. Ng5 {[%emt 0:02:15]} c5 $18 {[%emt 0:00:30]} (36... Qf8 $11 {and Black has nothing to worry.} 37. Bg4 Rh6 38. Re6+ Rxe6 39. Nxe6 Qh8 40. Nxc7+ {[%mdl 64] Double Attack} Ke7 41. Nxa8 Qxa8) 37. Rg4 {[%emt 0:00:52]} Ra7 {[%emt 0:00:14]} 38. Bf7+ {[%emt 0:00:56]} Kd8 {[%emt 0:00:48]} 39. Rxg7 {[%emt 0:00:35]} Qf6 {[%emt 0:00:20]} 40. Ne6+ {[%emt 0:00:50]} Kc8 {[%emt 0:00:09]} 41. Rg8+ {[%emt 0:02:53]} Kb7 {[%emt 0:01:10]} 42. Bxh5 {[%emt 0:00:13]} Ka6 {[%emt 0:00:26]} 43. Rf8 1-0

[Event "CZE-ch Open 2019"]
[Site "Ostrava"]
[Date "2019.04.28"]
[Round "2.26"]
[White "Taus, Martin"]
[Black "Vrana, Frantisek"]
[Result "1/2-1/2"]
[ECO "C01"]
[WhiteElo "2104"]
[BlackElo "2267"]
[Annotator "NA"]
[PlyCount "88"]
[EventDate "2019.04.27"]
[EventType "swiss"]
[EventCountry "CZE"]
[SourceTitle "playchess.com"]
[Source "ChessBase"]
[SourceQuality "1"]
[TimeControl "40/5400+30:1800+30"]

1. e4 {[%emt 0:00:00]} e6 {[%emt 0:00:00]} 2. d4 {[%emt 0:00:00]} d5 {[%emt 0:00:12]} 3. exd5 {[%emt 0:00:00]} exd5 {[%emt 0:00:04]} 4. Nf3 {[%emt 0:00:39]} Bd6 {[%emt 0:00:22]} 5. c4 {[%emt 0:00:08]} Nf6 {[%emt 0:04:59]} 6. c5 {[%emt 0:05:29]} Be7 {[%emt 0:00:12]} 7. Bd3 {[%emt 0:00:29]} O-O {[%emt 0:00:35] C01: French: Exchange Variation} 8. h3 {[%emt 0:01:44]} (8. O-O b6 9. Be3 Nc6 10. h3 bxc5 11. dxc5 Rb8 12. Nbd2 d4 13. Bg5 Nd5 14. Bxe7 Qxe7 15. Nb3 {1-0 (69) Tregubov,P (2592)-Kobo,O (2494) St Petersburg 2018}) 8... b6 {[%emt 0:00:19]} 9. cxb6 {[%emt 0:00:41]} axb6 {[%emt 0:00:10]} 10. O-O {[%emt 0:00:06]} c5 {[%emt 0:00:46]} 11. Nc3 {[%emt 0:00:33]} Nc6 {[%emt 0:01:17]} 12. Bg5 {[%emt 0:03:16]} h6 {[%emt 0:03:12]} 13. Bxf6 $146 {[%emt 0:07:25]} ({Predecessor:} 13. Bh4 Be6 {0-1 (40) Janev,P (2262)-Kosic,D (2478) Skopje 2015}) 13... Bxf6 {[%emt 0:00:14]} 14. dxc5 {[%emt 0:00:08]} bxc5 {[%emt 0:04:02]} 15. Nxd5 {[%emt 0:00:58]} Bxb2 {[%emt 0:00:29]} 16. Rb1 {[%emt 0:07:49]} Bd4 {[%emt 0:00:24]} 17. Nb6 {[%emt 0:03:29]} Rxa2 {[%emt 0:04:04]} 18. Be4 {[%emt 0:04:36]} Ne7 {[%emt 0:05:04]} 19. Nxc8 {[%emt 0:04:36]} Nxc8 {[%emt 0:00:22]} 20. Nxd4 {[%emt 0:00:38]} cxd4 {[%emt 0:00:27]} 21. Rb4 {[%emt 0:04:38]} Ra6 {[%emt 0:08:11]} 22. Rxd4 {[%emt 0:01:52]} Rd6 {[%emt 0:00:11]} 23. Rxd6 {[%emt 0:01:38]} Nxd6 {[%emt 0:00:08]} 24. Bb1 {[%emt 0:04:11]} Qf6 {[%emt 0:01:12]} 25. Qd3 {[%emt 0:00:50]} g6 {[%emt 0:00:11]} 26. Rd1 {[%emt 0:00:25]} Rd8 {[%emt 0:02:42]} 27. Qd4 {[%emt 0:09:48]} Qe7 {[%emt 0:00:22]} 28. Qf4 {[%emt 0:01:45]} Kg7 {[%emt 0:00:31]} 29. Kh2 {[%emt 0:03:45]} h5 {[%emt 0:03:10]} 30. h4 {[%emt 0:03:33]} Rd7 $11 {[%emt 0:02:16]} 31. Bc2 {[%emt 0:05:08]} Ne8 {[%emt 0:03:30]} 32. Rxd7 {[%emt 0:00:31]} Qxd7 {[%emt 0:00:02]} 33. Ba4 {[%emt 0:01:00]} Qd6 {[%emt 0:00:09]} 34. Kg3 {[%emt 0:01:40]} Nf6 {[%emt 0:00:39]} 35. Qxd6 {[%emt 0:00:25]} Ne4+ {[%emt 0:00:06]} 36. Kf4 {[%emt 0:00:20]} Nxd6 {[%emt 0:00:05]} 37. f3 {[%emt 0:03:48]} Nf5 {[%emt 0:00:39]} 38. g3 {[%emt 0:00:04]} Kf6 {[%emt 0:00:48]} 39. Bd7 {[%emt 0:00:50]} Nd4 {[%emt 0:00:34]} 40. g4 {[%emt 0:00:33]} Ne2+ {[%emt 0:01:55]} 41. Ke3 {[%emt 0:31:41]} Nc3 {[%emt 0:30:20]} 42. Kd4 {[%emt 0:07:13]} Ne2+ {[%emt 0:00:44]} 43. Ke3 {[%emt 0:00:45]} Nc3 {[%emt 0:02:39]} 44. Kd4 {[%emt 0:00:49]} Ne2+ 1/2-1/2

[Event "CZE-ch Open 2019"]
[Site "Ostrava"]
[Date "2019.04.28"]
[Round "2.27"]
[White "Freisler, Pavel"]
[Black "Otruba, Marek"]
[Result "1/2-1/2"]
[ECO "A13"]
[WhiteElo "2245"]
[BlackElo "2103"]
[Annotator "NA"]
[PlyCount "105"]
[EventDate "2019.04.27"]
[EventType "swiss"]
[EventCountry "CZE"]
[SourceTitle "playchess.com"]
[Source "ChessBase"]
[SourceQuality "1"]
[TimeControl "40/5400+30:1800+30"]

1. Nf3 {[%emt 0:00:00]} Nf6 {[%emt 0:00:00]} 2. c4 {[%emt 0:00:00]} e6 {[%emt 0:00:00]} 3. g3 {[%emt 0:00:11]} d5 {[%emt 0:00:09]} 4. Bg2 {[%emt 0:00:06]} dxc4 {[%emt 0:00:06]} 5. Qa4+ {[%emt 0:00:41]} c6 {[%emt 0:00:10]} 6. Qxc4 {[%emt 0:00:07]} b5 {[%emt 0:00:08]} 7. Qb3 {[%emt 0:05:58]} Bb7 {[%emt 0:00:08]} 8. a4 {[%emt 0:03:15]} a6 {[%emt 0:00:14]} 9. O-O {[%emt 0:01:49]} Nbd7 {[%emt 0:00:19]} 10. d4 {[%emt 0:00:23]} c5 {[%emt 0:01:10]} 11. axb5 {[%emt 0:12:30]} Bd5 {[%emt 0:00:26]} 12. Qc2 {[%emt 0:08:51] D30: Queen's Gambit Declined: Systems without Nc3} (12. Qd1 axb5 13. Rxa8 Qxa8 14. Nc3 Bc6 15. Bg5 Be7 16. dxc5 b4 17. Nb1 Bxc5 18. Bxf6 Nxf6 19. Qc2 Qa7 {1-0 (58) Almasi,Z (2707)-Horvath,A (2530) Bastia 2013}) 12... axb5 {[%emt 0:00:17]} 13. Rxa8 {[%emt 0:00:19]} Qxa8 {[%emt 0:00:06]} 14. Bg5 $146 {[%emt 0:03:13]} ({Predecessor:} 14. Nc3 Bc6 15. Nh4 b4 16. Nb5 Qb7 17. Bxc6 Qxc6 18. Qa4 Be7 19. dxc5 Bxc5 {0-1 (43) Abu Sufian,S (2322)-Ghaem Maghami,E (2564) Teheran 2017}) 14... c4 {[%emt 0:08:51]} 15. Nbd2 {[%emt 0:03:44]} Bd6 {[%emt 0:03:24]} 16. Nh4 {[%emt 0:07:31]} Bxg2 {[%emt 0:05:00]} 17. Nxg2 {[%emt 0:00:02]} Nd5 {[%emt 0:03:36]} 18. e4 {[%emt 0:07:31]} Nb4 {[%emt 0:00:41]} 19. Qc3 {[%emt 0:08:27]} O-O {[%emt 0:02:34]} 20. b3 {[%emt 0:14:36]} Rc8 {[%emt 0:10:38]} 21. bxc4 {[%emt 0:05:41]} bxc4 {[%emt 0:00:43]} 22. Ra1 {[%emt 0:00:18]} Qc6 {[%emt 0:01:35]} 23. Bf4 {[%emt 0:01:07]} Be7 {[%emt 0:01:42]} 24. Rb1 {[%emt 0:01:43]} Nd3 {[%emt 0:06:36]} 25. Be3 {[%emt 0:02:06]} Qa4 {[%emt 0:04:52]} 26. Ne1 {[%emt 0:05:21]} Nxe1 {[%emt 0:07:10]} 27. Rxe1 {[%emt 0:00:01]} Bb4 {[%emt 0:02:14]} 28. Ra1 {[%emt 0:01:14]} Bxc3 {[%emt 0:04:02]} 29. Rxa4 {[%emt 0:00:02]} Bxd2 {[%emt 0:01:31]} 30. Bxd2 {[%emt 0:00:02]} c3 {[%emt 0:00:40]} 31. Bc1 {[%emt 0:01:18]} f5 {[%emt 0:05:12]} 32. exf5 {[%emt 0:00:41]} exf5 {[%emt 0:00:08]} 33. Kf1 {[%emt 0:00:02]} Nb6 {[%emt 0:03:51]} 34. Rb4 {[%emt 0:00:17]} Nd5 {[%emt 0:04:02]} 35. Rb5 {[%emt 0:00:16]} Rd8 {[%emt 0:04:39]} 36. Ke2 {[%emt 0:02:42]} Nc7 {[%emt 0:00:28]} 37. Rxf5 $11 {[%emt 0:03:22]} Rxd4 {[%emt 0:01:14]} 38. Rc5 {[%emt 0:00:45]} Nd5 {[%emt 0:00:54]} 39. Be3 {[%emt 0:00:43]} Nxe3 {[%emt 0:00:09]} 40. Kxe3 {[%emt 0:00:04]} Ra4 {[%emt 0:00:33]} 41. Rxc3 {[%emt 0:30:03]} Kf7 {[%emt 0:31:01]} 42. Kf3 {[%emt 0:02:09]} h5 {[%emt 0:00:38]} 43. h3 {[%emt 0:00:18]} Kg6 {[%emt 0:00:21]} 44. Re3 {[%emt 0:00:33]} Kf5 {[%emt 0:00:58]} 45. Re7 {[%emt 0:00:00]} Ra3+ {[%emt 0:00:00]} 46. Kg2 {[%emt 0:00:00]} Kf6 {[%emt 0:00:00]} 47. Re3 {[%emt 0:00:00]} Ra4 {[%emt 0:00:00]} 48. f4 {[%emt 0:00:00]} h4 {[%emt 0:00:00]} 49. Re5 {[%emt 0:00:00]} Ra2+ {[%emt 0:00:00]} 50. Kf3 {[%emt 0:00:00]} Ra3+ {[%emt 0:00:00]} 51. Re3 {[%emt 0:00:00]} Rxe3+ {[%emt 0:00:00]} 52. Kxe3 {[%emt 0:00:00]} hxg3 {[%emt 0:00:00]} 53. Ke4 {Ke5+} 1/2-1/2

[Event "CZE-ch Open 2019"]
[Site "Ostrava"]
[Date "2019.04.28"]
[Round "2.28"]
[White "Holy, Filip"]
[Black "Zeman, Matyas"]
[Result "0-1"]
[ECO "D57"]
[WhiteElo "2096"]
[BlackElo "2244"]
[Annotator "NA"]
[PlyCount "44"]
[EventDate "2019.04.27"]
[EventType "swiss"]
[EventCountry "CZE"]
[SourceTitle "playchess.com"]
[Source "ChessBase"]
[SourceQuality "1"]
[TimeControl "40/5400+30:1800+30"]

1. d4 {[%emt 0:00:00]} e6 {[%emt 0:00:00]} 2. c4 {[%emt 0:00:00]} d5 {[%emt 0:00:00]} 3. Nf3 {[%emt 0:00:00]} Nf6 {[%emt 0:00:00]} 4. Nc3 {[%emt 0:00:00]} Be7 {[%emt 0:00:25]} 5. Bg5 {[%emt 0:00:12]} O-O {[%emt 0:00:14]} 6. e3 {[%emt 0:00:36]} h6 {[%emt 0:00:10]} 7. Bh4 {[%emt 0:00:32]} Ne4 {[%emt 0:00:16]} 8. Bxe7 {[%emt 0:00:27]} Qxe7 {[%emt 0:00:05]} 9. cxd5 {[%emt 0:01:12]} Nxc3 {[%emt 0:00:05]} 10. bxc3 {[%emt 0:00:11]} exd5 {[%emt 0:00:04]} 11. Qb3 {[%emt 0:00:56]} c6 {[%emt 0:02:10]} 12. Bd3 {[%emt 0:02:03]} Be6 {[%emt 0:17:51]} 13. O-O {[%emt 0:03:52]} Qc7 {[%emt 0:02:54]} 14. Rfb1 {[%emt 0:01:40]} b6 {[%emt 0:00:08]} 15. c4 {[%emt 0:06:27]} Nd7 {[%emt 0:02:02]} 16. a4 {[%emt 0:00:42]} Rfc8 {[%emt 0:09:27]} 17. Rc1 {[%emt 0:02:01]} Qd6 {[%emt 0:03:26]} 18. Rc3 {[%emt 0:01:30]} c5 {[%emt 0:04:40]} 19. cxd5 {[%emt 0:06:34]} Bxd5 {[%emt 0:00:11]} 20. Bc4 {[%emt 0:00:06]} cxd4 {[%emt 0:02:57]} 21. Nxd4 {[%emt 0:02:15]} Rxc4 {[%emt 0:00:47]} 22. Rxc4 {[%emt 0:05:21]} Ne5 {[%emt 0:00:51]} 0-1

[Event "CZE-ch Open 2019"]
[Site "Ostrava"]
[Date "2019.04.28"]
[Round "2.29"]
[White "Liska, Jiri"]
[Black "Kolar, Stanislav"]
[Result "1-0"]
[ECO "A35"]
[WhiteElo "2236"]
[BlackElo "2091"]
[Annotator "NA"]
[PlyCount "119"]
[EventDate "2019.04.27"]
[EventType "swiss"]
[EventCountry "CZE"]
[SourceTitle "playchess.com"]
[Source "ChessBase"]
[SourceQuality "1"]
[TimeControl "40/5400+30:1800+30"]

1. Nf3 Nf6 2. c4 c5 3. Nc3 Nc6 4. g3 e6 5. Bg2 Qb6 6. O-O d5 $146 {A34: Symmetrical English: 2 Nc3, lines with ...d5} ({Predecessor:} 6... Be7 7. b3 O-O 8. Bb2 (8. Na4 Qa6 9. d4 cxd4 10. Nxd4 d5 11. cxd5 {½-½ (56) Smerda,R (2315)-Paulik,V (2333) ICCF email 2014}) 8... d5 9. cxd5 exd5 10. d4 c4 11. e3 Rd8 12. Na4 Qc7 13. Nc3 a6 14. bxc4 dxc4 {1-0 (53) Delchev,A (2552)-Tilicheev,V (2507) Skopje 2018}) 7. cxd5 exd5 8. d4 cxd4 9. Na4 Qa6 10. Nxd4 Be7 11. b3 O-O 12. Bb2 Re8 13. Nxc6 bxc6 14. Qc2 Bg4 15. e3 Rac8 16. Nc5 Qe2 17. Qxe2 Bxe2 18. Rfc1 Bd6 19. Rc2 Bg4 20. Nb7 Be5 21. Bxe5 Rxe5 22. Rac1 h5 23. Na5 ({Less strong is} 23. Rxc6 Rxc6 24. Rxc6 d4 $16) 23... Bd7 24. b4 Rce8 25. Bf3 g5 26. Nxc6 Rf5 27. Nd4 Rfe5 28. Rc7 g4 29. Be2 Ra8 30. Bd3 Kf8 31. Rb7 Bc8 32. Rbc7 Bd7 33. R1c5 a6 34. Ra5 Bc8 35. b5 Ne8 36. Rc5 Nd6 37. bxa6 Re7 38. Rxd5 Ne8 39. Rd8 Rd7 40. Rxd7 Bxd7 41. Rxh5 Bc8 42. Nf5 Bxf5 43. Rxf5 Ke7 44. Rf4 Nf6 45. Rb4 Kd6 46. Rb7 Nd7 47. Bf1 f5 48. h4 gxh3 49. Kh2 Nc5 50. Rh7 Ne4 51. Bxh3 Nxf2 52. a7 Ke5 53. Bg2 Ne4 54. Bxe4 Kxe4 $18 55. Kg2 Kxe3 56. Re7+ Kd4 57. Kf3 Kd5 58. Kf4 Kd6 59. Rh7 Kd5 60. Kxf5 1-0

[Event "CZE-ch Open 2019"]
[Site "Ostrava"]
[Date "2019.04.28"]
[Round "2.30"]
[White "Valencik, Jozef"]
[Black "Jedlicka, Ales"]
[Result "1/2-1/2"]
[ECO "A45"]
[WhiteElo "2057"]
[BlackElo "2236"]
[Annotator "ChessBase"]
[PlyCount "123"]
[EventDate "2019.04.27"]
[EventType "swiss"]
[EventCountry "CZE"]
[SourceTitle "playchess.com"]
[Source "ChessBase"]
[SourceQuality "1"]
[TimeControl "40/5400+30:1800+30"]

1. d4 {[%emt 0:00:00]} Nf6 {[%emt 0:00:00]} 2. Bf4 {[%emt 0:00:00]} e6 {[%emt 0:01:07]} 3. Nf3 {[%emt 0:00:22]} c5 {[%emt 0:00:16]} 4. e3 {[%emt 0:02:47]} Nc6 {[%emt 0:00:32]} 5. c3 {[%emt 0:00:36]} d5 {[%emt 0:00:23]} 6. Nbd2 {[%emt 0:01:09]} Bd6 {[%emt 0:00:36]} 7. Bg3 {[%emt 0:00:08]} O-O {[%emt 0:00:45]} 8. Bd3 {[%emt 0:00:43]} b6 {[%emt 0:00:31]} 9. e4 {[%emt 0:03:06]} Be7 {[%emt 0:04:15]} 10. e5 {[%emt 0:00:38]} Nd7 {[%emt 0:00:50]} 11. h4 {[%emt 0:04:30]} f5 {[%emt 0:01:46]} 12. exf6 {[%emt 0:00:55]} Nxf6 {[%emt 0:01:17]} 13. Ne5 {[%emt 0:03:43]} Bb7 {[%emt 0:02:51]} 14. Qe2 {[%emt 0:19:33]} Nxe5 {[%emt 0:14:59]} 15. dxe5 {[%emt 0:03:43]} Ne8 {[%emt 0:03:59]} 16. Qh5 {[%emt 0:03:37]} g6 {[%emt 0:00:36]} 17. Qg4 {[%emt 0:01:21]} Ng7 {[%emt 0:00:23]} 18. O-O-O {[%emt 0:13:26]} b5 {[%emt 0:05:49]} 19. Nf3 {[%emt 0:04:10]} d4 {[%emt 0:08:17]} 20. h5 {[%emt 0:18:52]} g5 {[%emt 0:07:05]} 21. h6 {[%emt 0:01:24]} Nf5 {[%emt 0:01:25]} 22. Nxg5 {[%emt 0:04:19]} Bxg5+ {[%emt 0:00:54]} 23. Bf4 {[%emt 0:00:12]} Nxh6 {[%emt 0:20:46]} 24. Qxg5+ {[%emt 0:00:49]} Qxg5 {[%emt 0:00:10]} 25. Bxg5 {[%emt 0:00:02]} Nf5 {[%emt 0:00:33]} 26. Bxb5 {[%emt 0:06:28]} Rf7 {[%emt 0:01:34]} 27. Bc4 {[%emt 0:02:16]} Re8 {[%emt 0:00:22]} 28. Bf6 {[%emt 0:01:34]} Be4 {[%emt 0:09:42]} 29. Rhe1 {[%emt 0:01:48]} Bc6 {[%emt 0:02:19]} 30. Bd3 {[%emt 0:01:27]} Rd7 {[%emt 0:02:39]} 31. g4 {[%emt 0:00:58]} Ne7 {[%emt 0:00:41]} 32. c4 {[%emt 0:00:18]} Ng6 {[%emt 0:00:50]} 33. Be4 {[%emt 0:00:39]} Bb7 {[%emt 0:01:41]} 34. Bxb7 {[%emt 0:00:33]} Rxb7 {[%emt 0:00:07]} 35. Re4 {[%emt 0:00:37]} Rb4 {[%emt 0:00:22]} 36. b3 {[%emt 0:00:22]} a5 {[%emt 0:00:14]} 37. Rd3 {[%emt 0:00:37]} a4 {[%emt 0:00:55]} 38. Kc2 {[%emt 0:00:44]} axb3+ {[%emt 0:01:31]} 39. axb3 {[%emt 0:00:31]} Ra8 {[%emt 0:00:41]} 40. Kb2 {[%emt 0:00:27]} Rb7 {[%emt 0:00:37]} 41. Rf3 {[%emt 0:28:37]} Rba7 {[%emt 0:00:49]} 42. b4 {[%emt 0:00:34]} Ra2+ {[%emt 0:00:16]} 43. Kb1 {[%emt 0:00:38]} Ra1+ {[%emt 0:08:08]} 44. Kb2 {[%emt 0:00:11]} R1a2+ {[%emt 0:04:50]} 45. Kb1 {[%emt 0:00:12]} R2a4 {[%emt 0:01:32]} 46. Rb3 {[%emt 0:01:41]} Ra1+ {[%emt 0:00:37]} 47. Kc2 {[%emt 0:00:18]} R8a2+ {[%emt 0:01:15]} 48. Rb2 {[%emt 0:00:24]} d3+ {[%emt 0:00:18]} 49. Kc3 {[%emt 0:00:39]} Rc1+ {[%emt 0:00:50]} 50. Kd2 {[%emt 0:00:37]} Rxb2+ {[%emt 0:00:48]} 51. Kxc1 {[%emt 0:00:06]} Rxb4 {[%emt 0:11:07]} 52. f4 {[%emt 0:00:39]} Kf7 {[%emt 0:01:46]} 53. Kd2 {[%emt 0:00:19]} Rb3 {[%emt 0:01:52]} 54. Bg5 {[%emt 0:01:04]} Rb2+ {[%emt 0:02:41]} 55. Kxd3 {[%emt 0:00:16]} Rg2 {[%emt 0:00:15]} 56. f5 {[%emt 0:00:49]} exf5 {[%emt 0:00:35]} 57. e6+ {[%emt 0:01:02]} Ke8 {[%emt 0:00:30]} 58. gxf5 {[%emt 0:00:19]} Rxg5 {[%emt 0:00:10]} 59. fxg6 {[%emt 0:00:17]} hxg6 {[%emt 0:00:26]} 60. e7 {[%emt 0:00:59]} Rg3+ {[%emt 0:00:25]} 61. Kd2 {[%emt 0:00:08]} Rf3 {[%emt 0:00:56]} 62. Re5 {[%emt 0:00:40]} 1/2-1/2

[Event "CZE-ch Open 2019"]
[Site "Ostrava"]
[Date "2019.04.28"]
[Round "2.32"]
[White "Pavlicek, Lukas"]
[Black "Ludvik, Tomas"]
[Result "0-1"]
[ECO "C01"]
[WhiteElo "1963"]
[BlackElo "2222"]
[Annotator "NA"]
[PlyCount "98"]
[EventDate "2019.04.27"]
[EventType "swiss"]
[EventCountry "CZE"]
[SourceTitle "playchess.com"]
[Source "ChessBase"]
[SourceQuality "1"]
[TimeControl "40/5400+30:1800+30"]

1. e4 {[%emt 0:00:00]} e6 {[%emt 0:01:18]} 2. d4 {[%emt 0:00:00]} d5 {[%emt 0:00:05]} 3. exd5 {[%emt 0:00:00]} exd5 {[%emt 0:00:20]} 4. Nf3 {[%emt 0:00:00]} Bd6 {[%emt 0:00:55]} 5. c4 {[%emt 0:00:41]} dxc4 {[%emt 0:00:32]} 6. Bxc4 {[%emt 0:00:08]} Nf6 {[%emt 0:00:31]} 7. O-O {[%emt 0:01:03]} O-O {[%emt 0:00:10]} 8. Bg5 {[%emt 0:02:43]} h6 {[%emt 0:04:12]} 9. Bh4 {[%emt 0:02:19] D20: Queen's Gambit Accepted: 3 e3 and 3 e4} Nc6 {[%emt 0:08:27]} 10. Nc3 {[%emt 0:06:36]} Bg4 {[%emt 0:02:54]} 11. Bd5 {[%emt 0:08:06]} g5 $146 {[%emt 0:12:23]} ({Predecessor:} 11... Bxf3) 12. Bxc6 {[%emt 0:01:15]} bxc6 {[%emt 0:00:02]} 13. Bg3 {[%emt 0:00:23]} Rb8 {[%emt 0:02:49]} 14. b3 {[%emt 0:06:12]} Qd7 {[%emt 0:16:27]} 15. Be5 {[%emt 0:21:21]} Nd5 {[%emt 0:05:27]} 16. Nxd5 {[%emt 0:04:59]} cxd5 {[%emt 0:01:12]} 17. Bxd6 {[%emt 0:02:40]} Qxd6 {[%emt 0:00:25]} 18. Qd3 {[%emt 0:01:49]} Bxf3 {[%emt 0:08:00]} 19. Qxf3 {[%emt 0:00:28]} Rfe8 {[%emt 0:02:48]} 20. Rac1 {[%emt 0:05:41]} Re6 {[%emt 0:04:02]} 21. Rc5 {[%emt 0:15:19]} c6 {[%emt 0:00:23]} 22. Rfc1 {[%emt 0:00:43]} Rbe8 {[%emt 0:10:37]} 23. g3 {[%emt 0:02:26]} Re1+ {[%emt 0:02:05]} 24. Rxe1 {[%emt 0:00:52]} Rxe1+ {[%emt 0:00:03]} 25. Kg2 {[%emt 0:00:05]} Qe6 {[%emt 0:00:41]} 26. Rc3 {[%emt 0:03:52]} g4 {[%emt 0:01:39]} 27. Qd3 {[%emt 0:01:48]} h5 {[%emt 0:04:38]} 28. Rc2 {[%emt 0:03:34]} f5 {[%emt 0:05:42]} 29. Rd2 {[%emt 0:01:03]} f4 {[%emt 0:01:59]} 30. gxf4 {[%emt 0:00:09]} h4 {[%emt 0:00:07]} 31. Rd1 {[%emt 0:00:44]} Re4 {[%emt 0:02:52]} 32. Rf1 {[%emt 0:04:52]} h3+ {[%emt 0:01:32]} 33. Kg1 {[%emt 0:00:56]} Rxf4 {[%emt 0:00:17]} 34. Qe3 {[%emt 0:00:41]} Qf7 {[%emt 0:00:53]} 35. Re1 {[%emt 0:01:28]} Kh7 {[%emt 0:00:23]} 36. Qe7 {[%emt 0:01:30]} Qxe7 {[%emt 0:00:32]} 37. Rxe7+ {[%emt 0:00:04]} Kg6 {[%emt 0:00:25]} 38. Re6+ {[%emt 0:01:07]} Kf5 {[%emt 0:00:15]} 39. Rxc6 {[%emt 0:00:15]} Rxd4 {[%emt 0:00:05]} 40. Rc1 {[%emt 0:00:39]} Rd2 {[%emt 0:00:45]} 41. a4 {[%emt 0:01:49]} d4 {[%emt 0:06:16]} 42. Kf1 {[%emt 0:03:45]} d3 {[%emt 0:00:51]} 43. Ke1 {[%emt 0:00:27]} Re2+ {[%emt 0:00:17]} 44. Kf1 {[%emt 0:00:29]} Rc2 {[%emt 0:05:34]} 45. Rd1 {[%emt 0:03:59]} Ke4 {[%emt 0:00:24]} 46. Ke1 {[#]} Re2+ {[%emt 0:00:42]} (46... g3 $142 $1 {[%mdl 512]} 47. fxg3 Ke3 48. b4 d2+ 49. Rxd2 Rxd2 50. g4 Rxh2 51. Kd1 Rd2+ 52. Kc1 h2 53. g5 h1=Q#) 47. Kf1 {[%emt 0:00:57]} Rb2 {[%emt 0:00:11]} 48. Rc1 {[%emt 0:00:35]} d2 {[%emt 0:01:34]} 49. Rd1 {[%emt 0:00:35]} Ke5 0-1

[Event "CZE-ch Open 2019"]
[Site "Ostrava"]
[Date "2019.04.28"]
[Round "2.33"]
[White "Babula, Milan"]
[Black "Koubova, Anna Marie"]
[Result "1/2-1/2"]
[ECO "B53"]
[WhiteElo "2204"]
[BlackElo "2005"]
[Annotator "NA"]
[PlyCount "64"]
[EventDate "2019.04.27"]
[EventType "swiss"]
[EventCountry "CZE"]
[SourceTitle "playchess.com"]
[Source "ChessBase"]
[SourceQuality "1"]
[TimeControl "40/5400+30:1800+30"]

1. e4 {[%emt 0:00:00]} c5 {[%emt 0:00:00]} 2. Nf3 {[%emt 0:00:00]} d6 {[%emt 0:00:00]} 3. d4 {[%emt 0:00:00]} cxd4 {[%emt 0:00:00]} 4. Qxd4 {[%emt 0:00:01]} a6 {[%emt 0:00:00]} 5. c4 {[%emt 0:00:17]} Nf6 {[%emt 0:00:18]} 6. Nc3 {[%emt 0:00:06]} e6 {[%emt 0:00:14]} 7. Be2 {[%emt 0:00:40]} Be7 {[%emt 0:00:15]} 8. O-O {[%emt 0:01:00]} O-O {[%emt 0:00:16]} 9. b3 {[%emt 0:00:57]} Qc7 {[%emt 0:00:29]} 10. Bb2 {[%emt 0:00:14]} Nbd7 {[%emt 0:00:26]} 11. Rac1 {[%emt 0:10:29]} b6 {[%emt 0:00:31]} 12. Bd3 {[%emt 0:10:45]} Bb7 $11 {[%emt 0:01:23]} 13. Bb1 {[%emt 0:02:22]} Rac8 {[%emt 0:04:29]} 14. h3 {[%emt 0:03:40]} Rfd8 {[%emt 0:03:11]} 15. Qe3 {[%emt 0:27:04]} Re8 {[%emt 0:16:33]} 16. Rfe1 {[%emt 0:07:06]} Qb8 {[%emt 0:05:08]} 17. Nd4 {[%emt 0:20:10]} Bf8 {[%emt 0:05:21]} 18. Qg3 {[%emt 0:01:11]} g6 {[%emt 0:13:47]} 19. Rcd1 {[%emt 0:00:38]} Nh5 {[%emt 0:09:32]} 20. Qg5 {[%emt 0:02:26]} Bg7 {[%emt 0:01:29]} 21. Qd2 {[%emt 0:01:19]} Nhf6 {[%emt 0:02:22]} 22. Nde2 {[%emt 0:01:23]} Nc5 {[%emt 0:12:31]} 23. Ng3 {[%emt 0:01:35]} Red8 {[%emt 0:01:01]} 24. Qe2 {[%emt 0:01:58]} Qc7 {[%emt 0:06:11]} 25. Kh1 {[%emt 0:03:00]} Qc6 {[%emt 0:02:16]} 26. f3 {[%emt 0:00:55]} Qc7 {[%emt 0:00:52]} 27. Qf2 {[%emt 0:00:16]} Qb8 {[%emt 0:02:47]} 28. Bc2 {[%emt 0:01:49]} Qc7 {[%emt 0:04:37]} 29. b4 {[%emt 0:01:27]} Ncd7 {[%emt 0:00:32]} 30. Bb3 {[%emt 0:00:01]} Qb8 {[%emt 0:04:06]} 31. Nf1 {[%emt 0:00:28]} Ba8 {[%emt 0:01:33]} 32. Qe2 {[%emt 0:01:08]} Nh5 {[%emt 0:01:17]} 1/2-1/2